fUSD/lending_fUSD_20240317
["ID","MTS","AMOUNT","RATE_DAILY","PERIOD"]
[319330676,1710664250693,-500.0,0.00015499,2]
[319330677,1710664250702,-318.8,0.00015499,2]
[319330678,1710664250712,-175.488906,0.00015499,2]
[319330679,1710664250721,-221.938202,0.00015499,2]
[319330680,1710664250730,-221.938202,0.00015499,2]
[319330681,1710664250739,-500.0,0.00015499,2]
[319330682,1710664250749,-500.0,0.00015499,2]
[319330683,1710664250759,-500.0,0.00015499,2]
[319330684,1710664250774,-500.0,0.00015499,2]
[319330685,1710664250783,-500.0,0.00015499,2]
[319330686,1710664250792,-500.0,0.00015499,2]
[319330687,1710664250801,-327.4376581,0.00015499,2]
[319330688,1710664250811,-153.854328,0.00015499,2]
[319330689,1710664250820,-150.0,0.00015499,2]
[319330690,1710664250829,-150.0,0.00015499,2]
[319330691,1710664250839,-150.09530526,0.00015499,2]
[319330692,1710664250848,-151.0,0.00015499,2]
[319330693,1710664250858,-150.0,0.00015499,2]
[319330694,1710664250867,-150.0,0.00015499,2]
[319330695,1710664250877,-150.0,0.00015499,2]
[319330696,1710664250886,-150.0,0.00015499,2]
[319330697,1710664250895,-150.0,0.00015499,2]
[319330698,1710664250905,-150.0,0.00015499,2]
[319330699,1710664250914,-156.73269986,0.00015499,2]
[319330700,1710664250924,-1203.98,0.00015499,2]
[319330701,1710664250934,-1203.98,0.00015499,2]
[319330702,1710664250943,-1203.98,0.00015499,2]
[319330703,1710664250953,-1203.98,0.00015499,2]
[319330704,1710664250963,-1203.98,0.00015499,2]
[319330705,1710664250972,-1775.26,0.00015499,2]
[319330706,1710664250982,-1775.26,0.00015499,2]
[319330707,1710664250992,-1203.98,0.00015499,2]
[319330708,1710664251001,-1775.26,0.00015499,2]
[319330709,1710664251011,-1203.98,0.00015499,2]
[319330710,1710664251024,-1775.26,0.00015499,2]
[319330711,1710664251033,-1203.98,0.00015499,2]
[319330712,1710664251043,-1775.26,0.00015499,2]
[319330713,1710664251053,-1203.98,0.00015499,2]
[319330714,1710664251062,-1775.26,0.00015499,2]
[319330715,1710664251072,-1203.98,0.00015499,2]
[319330716,1710664251081,-1775.26,0.00015499,2]
[319330717,1710664251090,-1775.26,0.00015499,2]
[319330718,1710664251099,-1203.98,0.00015499,2]
[319330719,1710664251108,-1775.26,0.00015499,2]
[319330720,1710664251118,-1203.98,0.00015499,2]
[319330721,1710664251127,-1775.26,0.00015499,2]
[319330722,1710664251136,-1203.98,0.00015499,2]
[319330723,1710664251146,-1775.26,0.00015499,2]
[319330724,1710664251155,-1203.98,0.00015499,2]
[319330725,1710664251164,-636.18,0.00015499,2]
[319330726,1710664251174,-1775.26,0.00015499,2]
[319330727,1710664251183,-1204.01818363,0.00015499,2]
[319330728,1710664251192,-636.18,0.00015499,2]
[319330729,1710664251201,-1775.26,0.00015499,2]
[319330730,1710664251211,-636.18,0.00015499,2]
[319330731,1710664251221,-1775.26,0.00015499,2]
[319330732,1710664251230,-636.18,0.00015499,2]
[319330733,1710664251239,-1775.47,0.00015499,2]
[319330734,1710664251248,-151.0,0.00015499,2]
[319330735,1710664251258,-636.18,0.00015499,2]
[319330736,1710664251270,-636.18,0.00015499,2]
[319330737,1710664251280,-636.18,0.00015499,2]
[319330738,1710664251290,-636.18,0.00015499,2]
[319330739,1710664251300,-636.18,0.00015499,2]
[319330740,1710664251309,-636.18,0.00015499,2]
[319330741,1710664251318,-636.18,0.00015499,2]
[319330742,1710664251328,-636.18,0.00015499,2]
[319330743,1710664251338,-636.18,0.00015499,2]
[319330744,1710664251347,-636.18,0.00015499,2]
[319330745,1710664251357,-636.18,0.00015499,2]
[319330746,1710664251366,-636.18,0.00015499,2]
[319330747,1710664251376,-636.18,0.00015499,2]
[319330748,1710664251385,-636.28142559,0.00015499,2]
[319330749,1710664251395,-971.02,0.00015499,2]
[319330750,1710664251405,-1519.42,0.00015499,2]
[319330751,1710664251414,-971.02,0.00015499,2]
[319330752,1710664251423,-1519.42,0.00015499,2]
[319330753,1710664251433,-971.02,0.00015499,2]
[319330754,1710664251442,-1519.42,0.00015499,2]
[319330755,1710664251451,-971.02,0.00015499,2]
[319330756,1710664251461,-1519.42,0.00015499,2]
[319330757,1710664251470,-971.02,0.00015499,2]
[319330758,1710664251480,-1519.42,0.00015499,2]
[319330759,1710664251489,-971.02,0.00015499,2]
[319330760,1710664251499,-1519.42,0.00015499,2]
[319330761,1710664251509,-971.02,0.00015499,2]
[319330762,1710664251522,-1519.42,0.00015499,2]
[319330763,1710664251531,-971.02,0.00015499,2]
[319330764,1710664251540,-1519.42,0.00015499,2]
[319330765,1710664251550,-1519.42,0.00015499,2]
[319330766,1710664251559,-1519.42,0.00015499,2]
[319330767,1710664251567,-971.02,0.00015499,2]
[319330768,1710664251577,-1519.42,0.00015499,2]
[319330769,1710664251586,-971.02,0.00015499,2]
[319330770,1710664251595,-151.0,0.00015499,2]
[319330771,1710664251604,-971.02,0.00015499,2]
[319330772,1710664251615,-1519.42,0.00015499,2]
[319330773,1710664251624,-971.02,0.00015499,2]
[319330774,1710664251635,-1519.42,0.00015499,2]
[319330775,1710664251645,-1519.42,0.00015499,2]
[319330776,1710664251654,-971.02,0.00015499,2]
[319330777,1710664251665,-1519.58378891,0.00015499,2]
[319330778,1710664251675,-971.02,0.00015499,2]
[319330779,1710664251685,-971.11137006,0.00015499,2]
[319330780,1710664251694,-1047.37761316,0.000155,3]
[319330781,1710664251704,-3593588.23364743,0.000155,2]
[319330782,1710664251724,-3054.89154427,0.000155,2]
[319330783,1710664251735,-495.3225366,0.000155,2]
[319330784,1710664251748,-2660.56650249,0.000155,2]
[319330785,1710664251760,-512.6399146,0.000155,2]
[319330786,1710664251774,-530.45176955,0.000155,2]
[319330787,1710664251785,-1244.21558603,0.000155,2]
[319330788,1710664251797,-1815.63445285,0.000155,2]
[319330791,1710664496024,5300.0,0.00017,17]
[319330792,1710664517901,512.21,0.00012587,2]
[319330797,1710664601374,5300.0,0.00017,22]
[319330813,1710664939093,486.59,0.00012528,2]
[319330818,1710664964582,7001.2,0.00012528,2]
[319330834,1710665410378,180.42,0.00010063,2]
[319330861,1710665431941,-424.08036166,0.00012418,2]
[319330862,1710665431951,-5350.53346211,0.00012418,2]
[319330863,1710665431961,-358.08244329,0.00012419,2]
[319330864,1710665431971,-2973.58421331,0.00012419,2]
[319330865,1710665431980,-500.0,0.00012419,2]
[319330866,1710665431992,-12739.39299961,0.00012419,2]
[319330867,1710665432002,-547.96077282,0.00012419,2]
[319330868,1710665432012,-1379.23684559,0.00012419,2]
[319330869,1710665432024,-3031.19922394,0.00012419,2]
[319330870,1710665432033,-533.99258616,0.0001242,2]
[319330871,1710665432043,-451.16891836,0.00012421,2]
[319330872,1710665432054,-258.97241146,0.00012421,2]
[319330873,1710665432063,-193.48944884,0.00012421,2]
[319330874,1710665432073,-1017.0,0.00012421,2]
[319330875,1710665432081,-217.02417974,0.00012422,2]
[319330876,1710665432092,-217.02417974,0.00012422,2]
[319330877,1710665432102,-217.02417974,0.00012422,2]
[319330878,1710665432111,-165.48517815,0.00012428,2]
[319330879,1710665432121,-170.08397805,0.00012488,2]
[319330880,1710665432131,-155.0,0.00012489,2]
[319330881,1710665432141,-204.51479183,0.0001249,2]
[319330882,1710665432150,-718.58628534,0.0001249,2]
[319330883,1710665432162,-209.11431152,0.0001249,2]
[319330884,1710665432172,-205.29676604,0.0001249,2]
[319330885,1710665432181,-3202.6524627,0.0001249,2]
[319330886,1710665432193,-857.80460419,0.0001249,2]
[319330887,1710665432206,-470.66422877,0.0001249,2]
[319330888,1710665432218,-186.03231038,0.0001249,2]
[319330889,1710665432227,-202.7167562,0.0001249,2]
[319330890,1710665432237,-732.29547496,0.0001249,2]
[319330891,1710665432249,-363.99080229,0.0001249,2]
[319330892,1710665432258,-457.60705746,0.0001249,2]
[319330893,1710665432271,-1762.63993484,0.0001249,2]
[319330894,1710665432280,-212.07417547,0.0001249,2]
[319330895,1710665432290,-165.27237696,0.0001249,2]
[319330896,1710665432299,-267.04915129,0.0001249,2]
[319330897,1710665432310,-535.40807805,0.0001249,2]
[319330898,1710665432321,-250.67924922,0.0001249,2]
[319330899,1710665432331,-205.94091651,0.0001249,2]
[319330900,1710665432341,-255.4947204,0.0001249,2]
[319330901,1710665432352,-3826.98796106,0.0001249,2]
[319330902,1710665432363,-155.0,0.0001249,2]
[319330903,1710665432374,-210.51392997,0.0001249,2]
[319330904,1710665432385,-536.84122639,0.0001249,2]
[319330905,1710665432396,-782.40260707,0.0001249,2]
[319330906,1710665432406,-292.16764172,0.0001249,2]
[319330907,1710665432421,-162.52703146,0.0001249,2]
[319330908,1710665432431,-182.17724301,0.0001249,2]
[319330909,1710665432442,-197.06053943,0.0001249,2]
[319330910,1710665432451,-351.91072949,0.0001249,2]
[319330911,1710665432461,-200.26447835,0.0001249,2]
[319330912,1710665432470,-404.25317979,0.0001249,2]
[319330913,1710665432480,-970.99024343,0.0001249,2]
[319330914,1710665432489,-158.04643056,0.0001249,2]
[319330915,1710665432499,-155.0,0.0001249,2]
[319330916,1710665432509,-799.00290175,0.00012491,2]
[319330917,1710665432518,-277.52851598,0.00012491,2]
[319330918,1710665432528,-189.74023871,0.00012491,2]
[319330919,1710665432538,-294.04398676,0.00012491,2]
[319330920,1710665432547,-22391.58182324,0.00012492,2]
[319330921,1710665432564,-790.43962363,0.00012492,2]
[319330922,1710665432576,-4775.97614724,0.00012492,2]
[319330923,1710665432588,-699.60708,0.00012492,2]
[319330924,1710665432619,-846.08694448,0.00012492,2]
[319330926,1710665432653,-1689.26445862,0.00012492,2]
[319330928,1710665432667,-565.94941427,0.00012492,2]
[319330930,1710665432678,-5734.09426903,0.00012492,2]
[319330932,1710665432689,-29064.18972154,0.00012492,2]
[319330934,1710665432702,-1188.16700002,0.00012492,2]
[319330937,1710665432713,-9985.29237952,0.00012492,2]
[319330939,1710665432724,-16192.209015,0.00012492,2]
[319330941,1710665432737,-943.08724537,0.00012492,2]
[319330944,1710665432752,-626.78539172,0.00012492,2]
[319331029,1710665437945,-160.22207115,0.0001249,2]
[319331030,1710665437954,-66115.03492444,0.00012492,2]
[319331032,1710665437966,-13000.0,0.00012492,2]
[319331033,1710665437978,-65000.99999999,0.00012492,2]
[319331034,1710665437990,-11821.78606447,0.00012492,2]
[319331035,1710665438024,-679.43876,0.00012492,2]
[319331036,1710665438038,-1560.16303225,0.00012492,2]
[319331037,1710665438065,-73999.999999,0.00012492,2]
[319331038,1710665438077,-12345.0623473,0.00012492,2]
[319331039,1710665438089,-40188.70718728,0.00012492,2]
[319331040,1710665438102,-25753.39893951,0.00012492,2]
[319331041,1710665438217,-306.06123841,0.00012492,2]
[319331042,1710665438229,-245460.48058808,0.00012492,2]
[319331043,1710665438238,-150.0,0.00012493,2]
[319331044,1710665438247,-1001.0200467,0.000125,2]
[319331045,1710665438256,-150.0,0.00012525,2]
[319331046,1710665438266,-300.0,0.00012525,2]
[319331047,1710665438275,-91721.39,0.00012525,2]
[319331048,1710665438285,-552.55265012,0.00012526,2]
[319331049,1710665438294,-155.45961964,0.00012526,2]
[319331050,1710665438304,-5935.11071196,0.00012526,2]
[319331051,1710665438313,-207.63863653,0.00012526,2]
[319331052,1710665438322,-155.0,0.00012526,2]
[319331053,1710665438332,-176.34445066,0.00012526,2]
[319331054,1710665438341,-458.85765804,0.00012528,2]
[319331055,1710665438351,-19555.90483113,0.00012528,2]
[319331056,1710665438361,-341.32138803,0.00012528,2]
[319331057,1710665438370,-23477.22316725,0.00012528,2]
[319331058,1710665438379,-807.41024807,0.00012528,2]
[319331059,1710665438389,-287.31978199,0.00012528,2]
[319331060,1710665438398,-323.4295251,0.00012528,2]
[319331061,1710665438407,-290.89652637,0.00012528,2]
[319331062,1710665438420,-1902.18568646,0.00012528,2]
[319331063,1710665438429,-550.24371038,0.00012528,2]
[319331064,1710665438439,-492.49537844,0.00012528,2]
[319331065,1710665438449,-317.34861265,0.00012528,2]
[319331066,1710665438458,-939.36246232,0.00012528,2]
[319331067,1710665438469,-1000.0,0.00013,2]
[319331068,1710665438478,-186.78,0.00013554,2]
[319331069,1710665438488,-157.75,0.0001365,2]
[319331070,1710665438497,-250.0,0.0001369,2]
[319331073,1710665438506,-250.0,0.00013699,2]
[319331074,1710665438515,-210.0,0.00013778,2]
[319331076,1710665438525,-157.75,0.00013841,2]
[319331077,1710665438535,-5028.48834122,0.00014,2]
[319331078,1710665438544,-14686.75,0.00014008,2]
[319331079,1710665438554,-157.75,0.00014032,2]
[319331080,1710665438563,-1500.0,0.00014142,4]
[319331081,1710665438573,-1887.42,0.00014188,2]
[319331082,1710665438583,-157.75,0.00014224,2]
[319331083,1710665438592,-3325.31,0.00014231,2]
[319331084,1710665438602,-385.31,0.00014321,2]
[319331085,1710665438611,-157.75,0.00014415,2]
[319331086,1710665438621,-202.04,0.00014448,2]
[319331087,1710665438630,-614.69,0.00014455,2]
[319331088,1710665438640,-251.18,0.00014479,2]
[319331089,1710665438650,-152.0,0.00014547,2]
[319331090,1710665438659,-152.0,0.00014575,2]
[319331091,1710665438673,-152.0,0.00014602,2]
[319331092,1710665438683,-157.75,0.00014606,2]
[319331093,1710665438692,-152.0,0.0001463,2]
[319331094,1710665438702,-486.59,0.00014792,2]
[319331095,1710665438711,-177.07264669,0.00015,2]
[319331096,1710665438721,-12473.34436896,0.00015,2]
[319331097,1710665438730,-333.0,0.00015098,2]
[319331098,1710665438739,-956.1171,0.000151,2]
[319331099,1710665438748,-2425.3774,0.000151,2]
[319331100,1710665438758,-205.66969896,0.000151,2]
[319331101,1710665438767,-293.0,0.00015155,2]
[319331102,1710665438776,-360.41718649,0.00015199,2]
[319331103,1710665438786,-11158.227,0.00015199,2]
[319331104,1710665438796,-21631.8673,0.000152,2]
[319331105,1710665438806,-221272.54568067,0.0001525,2]
[319331106,1710665438830,-22569.73960901,0.0001525,2]
[319331107,1710665438841,-9378.98319618,0.0001525,2]
[319331118,1710665439980,-114250.49769557,0.0001525,2]
[319331119,1710665442261,-456.0416,0.00015249,2]
[319331120,1710665442272,-208316.22520187,0.0001525,2]
[319331121,1710665442423,-5022.13100153,0.0001525,2]
[319331122,1710665442435,-3148.24465642,0.0001525,2]
[319331123,1710665442447,-1770.63419997,0.0001525,2]
[319331124,1710665442459,-2149.68255434,0.0001525,2]
[319331125,1710665442498,-663.39,0.0001525,2]
[319331126,1710665442563,-526.344,0.0001525,2]
[319331148,1710665442856,-359.73856219,0.0001525,2]
[319331150,1710665442869,-5233.09385769,0.0001525,2]
[319331151,1710665442880,-1649.19261674,0.0001525,2]
[319331153,1710665442892,-6222.64080014,0.0001525,2]
[319331155,1710665443027,-904.0213433,0.0001525,2]
[319331156,1710665443038,-469.15268,0.0001525,2]
[319331157,1710665443058,-5420.415,0.0001525,2]
[319331158,1710665443070,-4062.68999037,0.0001525,2]
[319331159,1710665443081,-1937.7004354,0.0001525,2]
[319331160,1710665443092,-6038.56474846,0.0001525,2]
[319331161,1710665443104,-2197.93028883,0.0001525,2]
[319331162,1710665443116,-56330.26386357,0.0001525,2]
[319331163,1710665443125,-150.0,0.00015271,2]
[319331164,1710665443135,-10963.545,0.000153,2]
[319331165,1710665443144,-1914.83673643,0.00015302,2]
[319331166,1710665443157,-9067.01726357,0.00015302,2]
[319331167,1710665443168,-500.0,0.00015342,2]
[319331168,1710665443177,-500.0,0.00015342,2]
[319331169,1710665443187,-240.859749,0.00015342,2]
[319331170,1710665443197,-4441.4617,0.00015397,2]
[319331171,1710665443207,-13743.99,0.00015397,2]
[319331172,1710665443217,-203.26458646,0.00015397,2]
[319331173,1710665443227,-500.0,0.00015397,2]
[319331174,1710665443236,-500.0,0.00015397,2]
[319331175,1710665443246,-500.0,0.00015397,2]
[319331176,1710665443256,-500.0,0.00015397,2]
[319331177,1710665443266,-500.0,0.00015397,2]
[319331178,1710665443276,-500.0,0.00015397,2]
[319331179,1710665443285,-500.0,0.00015397,2]
[319331180,1710665443294,-500.0,0.00015397,2]
[319331181,1710665443304,-500.0,0.00015397,2]
[319331182,1710665443313,-500.0,0.00015397,2]
[319331183,1710665443322,-500.0,0.00015397,2]
[319331184,1710665443332,-500.0,0.00015397,2]
[319331185,1710665443341,-500.0,0.00015397,2]
[319331186,1710665443350,-500.0,0.00015397,2]
[319331187,1710665443359,-500.0,0.00015397,2]
[319331188,1710665443369,-548.33166139,0.00015397,2]
[319331189,1710665443378,-500.0,0.00015397,2]
[319331190,1710665443388,-516.52233445,0.00015397,2]
[319331191,1710665443397,-500.0,0.00015397,2]
[319331192,1710665443407,-500.0,0.00015397,2]
[319331193,1710665443419,-500.0,0.00015397,2]
[319331194,1710665443428,-500.0,0.00015397,2]
[319331195,1710665443438,-500.0,0.00015397,2]
[319331196,1710665443448,-500.0,0.00015397,2]
[319331197,1710665443458,-500.0,0.00015397,2]
[319331198,1710665443468,-500.0,0.00015397,2]
[319331199,1710665443479,-500.0,0.00015397,2]
[319331200,1710665443489,-500.0,0.00015397,2]
[319331201,1710665443499,-500.0,0.00015397,2]
[319331202,1710665443509,-500.0,0.00015397,2]
[319331203,1710665443519,-500.0,0.00015397,2]
[319331204,1710665443528,-487.88,0.00015397,2]
[319331205,1710665443537,-500.0,0.00015397,2]
[319331206,1710665443547,-500.0,0.00015397,2]
[319331207,1710665443557,-500.0,0.00015397,2]
[319331208,1710665443566,-500.0,0.00015397,2]
[319331209,1710665443575,-500.0,0.00015397,2]
[319331210,1710665443585,-500.0,0.00015397,2]
[319331211,1710665443594,-291.56423829,0.00015397,2]
[319331212,1710665443603,-500.0,0.00015397,2]
[319331213,1710665443613,-500.0,0.00015397,2]
[319331214,1710665443623,-500.0,0.00015397,2]
[319331215,1710665443633,-500.0,0.00015397,2]
[319331216,1710665443642,-500.0,0.00015397,2]
[319331217,1710665443653,-500.0,0.00015397,2]
[319331218,1710665443662,-500.0,0.00015397,2]
[319331219,1710665443674,-500.0,0.00015397,2]
[319331220,1710665443684,-500.0,0.00015397,2]
[319331221,1710665443693,-500.0,0.00015397,2]
[319331222,1710665443703,-500.0,0.00015397,2]
[319331223,1710665443712,-500.0,0.00015397,2]
[319331224,1710665443722,-500.0,0.00015397,2]
[319331225,1710665443731,-420.21273983,0.00015397,2]
[319331226,1710665443741,-500.0,0.00015397,2]
[319331227,1710665443751,-500.0,0.00015397,2]
[319331228,1710665443760,-500.0,0.00015397,2]
[319331229,1710665443770,-500.0,0.00015397,2]
[319331230,1710665443779,-500.0,0.00015397,2]
[319331231,1710665443789,-500.0,0.00015397,2]
[319331232,1710665443798,-500.0,0.00015397,2]
[319331233,1710665443808,-500.0,0.00015397,2]
[319331234,1710665443817,-500.0,0.00015397,2]
[319331235,1710665443826,-500.0,0.00015397,2]
[319331236,1710665443836,-500.0,0.00015397,2]
[319331237,1710665443846,-500.0,0.00015397,2]
[319331238,1710665443855,-584.44,0.00015397,2]
[319331239,1710665443865,-584.44,0.00015397,2]
[319331240,1710665443874,-586.57,0.00015397,2]
[319331241,1710665443883,-584.44,0.00015397,2]
[319331242,1710665443893,-586.57,0.00015397,2]
[319331243,1710665443903,-584.44,0.00015397,2]
[319331244,1710665443912,-586.57,0.00015397,2]
[319331245,1710665443924,-586.57,0.00015397,2]
[319331246,1710665443933,-500.0,0.00015397,2]
[319331247,1710665443942,-500.0,0.00015397,2]
[319331248,1710665443952,-500.0,0.00015397,2]
[319331249,1710665443961,-500.0,0.00015397,2]
[319331250,1710665443970,-500.0,0.00015397,2]
[319331251,1710665443980,-500.0,0.00015397,2]
[319331252,1710665443989,-500.0,0.00015397,2]
[319331253,1710665444000,-192868.3567,0.00015398,2]
[319331254,1710665444010,-5000.0,0.00015398,2]
[319331255,1710665444021,-400.0,0.00015399,2]
[319331256,1710665444030,-5300.0,0.0001549,4]
[319331257,1710665444040,-5300.0,0.0001549,5]
[319331258,1710665444050,-5300.0,0.0001549,2]
[319331259,1710665444059,-500.0,0.00015496,2]
[319331260,1710665444068,-500.0,0.00015496,2]
[319331261,1710665444078,-500.0,0.00015496,2]
[319331262,1710665444087,-500.0,0.00015496,2]
[319331263,1710665444096,-500.0,0.00015496,2]
[319331264,1710665444106,-500.0,0.00015496,2]
[319331265,1710665444117,-500.0,0.00015496,2]
[319331266,1710665444126,-500.0,0.00015496,2]
[319331267,1710665444135,-552.38504207,0.00015496,2]
[319331268,1710665444145,-500.0,0.00015496,2]
[319331269,1710665444155,-500.0,0.00015496,2]
[319331270,1710665444166,-500.0,0.00015496,2]
[319331271,1710665444175,-500.0,0.00015496,2]
[319331272,1710665444184,-500.0,0.00015496,2]
[319331273,1710665444193,-500.0,0.00015496,2]
[319331274,1710665444203,-500.0,0.00015496,2]
[319331275,1710665444212,-500.0,0.00015496,2]
[319331276,1710665444221,-500.0,0.00015496,2]
[319331277,1710665444230,-500.0,0.00015496,2]
[319331278,1710665444249,-500.0,0.00015496,2]
[319331279,1710665444259,-500.0,0.00015496,2]
[319331280,1710665444269,-500.0,0.00015496,2]
[319331281,1710665444278,-500.0,0.00015496,2]
[319331282,1710665444287,-275.21035036,0.00015496,2]
[319331283,1710665444296,-500.0,0.00015496,2]
[319331284,1710665444306,-500.0,0.00015496,2]
[319331285,1710665444315,-500.0,0.00015496,2]
[319331286,1710665444325,-500.0,0.00015496,2]
[319331287,1710665444334,-500.0,0.00015496,2]
[319331288,1710665444343,-500.0,0.00015496,2]
[319331289,1710665444352,-500.0,0.00015496,2]
[319331290,1710665444361,-500.0,0.00015496,2]
[319331291,1710665444371,-500.0,0.00015496,2]
[319331292,1710665444381,-500.0,0.00015496,2]
[319331293,1710665444390,-500.0,0.00015496,2]
[319331294,1710665444400,-500.0,0.00015496,2]
[319331295,1710665444410,-500.0,0.00015496,2]
[319331296,1710665444423,-500.0,0.00015496,2]
[319331297,1710665444432,-500.0,0.00015496,2]
[319331298,1710665444442,-500.0,0.00015496,2]
[319331299,1710665444452,-500.0,0.00015496,2]
[319331300,1710665444462,-500.0,0.00015496,2]
[319331301,1710665444472,-500.0,0.00015496,2]
[319331302,1710665444481,-500.0,0.00015496,2]
[319331303,1710665444490,-587.8347708,0.00015496,2]
[319331304,1710665444501,-500.0,0.00015496,2]
[319331305,1710665444510,-500.0,0.00015496,2]
[319331306,1710665444520,-500.0,0.00015496,2]
[319331307,1710665444530,-323.29225583,0.00015496,2]
[319331308,1710665444539,-500.0,0.00015496,2]
[319331309,1710665444549,-500.0,0.00015496,2]
[319331310,1710665444558,-500.0,0.00015496,2]
[319331311,1710665444568,-500.0,0.00015496,2]
[319331312,1710665444577,-500.0,0.00015496,2]
[319331313,1710665444587,-500.0,0.00015496,2]
[319331314,1710665444597,-193.96,0.00015496,2]
[319331315,1710665444607,-500.0,0.00015496,2]
[319331316,1710665444616,-500.0,0.00015496,2]
[319331317,1710665444626,-500.0,0.00015496,2]
[319331318,1710665444635,-500.0,0.00015496,2]
[319331319,1710665444644,-500.0,0.00015496,2]
[319331320,1710665444653,-500.0,0.00015496,2]
[319331321,1710665444662,-500.0,0.00015496,2]
[319331322,1710665444673,-500.0,0.00015496,2]
[319331323,1710665444686,-500.0,0.00015496,2]
[319331324,1710665444696,-500.0,0.00015496,2]
[319331325,1710665444706,-500.0,0.00015496,2]
[319331326,1710665444716,-500.0,0.00015496,2]
[319331327,1710665444725,-500.0,0.00015496,2]
[319331328,1710665444735,-182.53,0.00015496,2]
[319331329,1710665444745,-513.49401219,0.00015496,2]
[319331330,1710665444755,-605.02,0.00015496,2]
[319331331,1710665444765,-500.0,0.00015496,2]
[319331332,1710665444775,-500.0,0.00015496,2]
[319331333,1710665444785,-500.0,0.00015496,2]
[319331334,1710665444795,-500.0,0.00015496,2]
[319331335,1710665444806,-500.0,0.00015496,2]
[319331336,1710665444817,-407.56,0.00015496,2]
[319331337,1710665444827,-500.0,0.00015496,2]
[319331338,1710665444837,-500.0,0.00015496,2]
[319331339,1710665444847,-500.0,0.00015496,2]
[319331340,1710665444857,-500.0,0.00015496,2]
[319331341,1710665444867,-500.0,0.00015496,2]
[319331342,1710665444877,-500.0,0.00015496,2]
[319331343,1710665444887,-395.92608428,0.00015496,2]
[319331344,1710665444897,-500.0,0.00015496,2]
[319331345,1710665444906,-203.50257839,0.00015496,2]
[319331346,1710665444917,-500.0,0.00015496,2]
[319331347,1710665444926,-500.0,0.00015496,2]
[319331348,1710665444935,-500.0,0.00015496,2]
[319331349,1710665444944,-395.72507308,0.00015496,2]
[319331350,1710665444957,-500.0,0.00015496,2]
[319331351,1710665444966,-367.71762244,0.00015496,2]
[319331352,1710665444975,-500.0,0.00015496,2]
[319331353,1710665444985,-500.0,0.00015496,2]
[319331354,1710665444996,-9882.5697714,0.00015496,2]
[319331355,1710665445008,-500.0,0.00015496,2]
[319331356,1710665445017,-500.0,0.00015496,2]
[319331357,1710665445027,-500.0,0.00015496,2]
[319331358,1710665445038,-5543.2287942,0.00015496,2]
[319331359,1710665445048,-500.0,0.00015496,2]
[319331360,1710665445057,-500.0,0.00015496,2]
[319331361,1710665445066,-500.0,0.00015496,2]
[319331362,1710665445076,-626.37,0.00015496,2]
[319331363,1710665445085,-43538.4981163,0.00015496,2]
[319331364,1710665445094,-500.0,0.00015496,2]
[319331365,1710665445104,-500.0,0.00015496,2]
[319331366,1710665445113,-500.0,0.00015496,2]
[319331367,1710665445123,-500.0,0.00015496,2]
[319331368,1710665445132,-500.0,0.00015496,2]
[319331369,1710665445141,-500.0,0.00015496,2]
[319331370,1710665445151,-584.44,0.00015496,2]
[319331371,1710665445161,-586.57,0.00015496,2]
[319331372,1710665445173,-500.0,0.00015496,2]
[319331373,1710665445183,-498.68481426,0.00015497,2]
[319331374,1710665445194,-500.0,0.00015497,2]